[Event "1st Festival Galdar 2024"]
[Site "Galdar"]
[Date "2024.09.03"]
[Round "3.13"]
[White "Mouhamad, Joachim"]
[Black "Balaji, Aaravamudhan"]
[Result "1-0"]
[Annotator "TA"]
[ECO "B08"]
[WhiteElo "2260"]
[BlackElo "2396"]
[PlyCount "133"]
[EventDate "2024.09.02"]
[EventType "swiss"]
[EventCountry "ESP"]
[SourceTitle "playchess.com"]
[Source "ChessBase"]
[SourceQuality "1"]
[TimeControl "5400+30"]

{[%evp 15,133,35,28,-20,22,0,0,0,60,49,43,53,54,43,45,43,162,170,164,89,99,110,115,102,147,131,136,139,136,100,252,256,261,282,313,307,422,337,366,342,329,287,283,281,296,275,302,294,287,242,244,250,260,266,343,306,366,163,183,182,175,99,410,389,409,391,356,289,269,240,600,585,447,118,118,66,66,66,66,66,66,8,8,8,8,8,8,8,10,11,1772,460,1822,1752,1522,1401,1357,1151,29955,29959,29962,29956,29958,29956,29962,29958,29956,29960,29964,29966,29972,29973,29979,29980,29980,29981,29981,29982,29982,29982]} 1. e4 {[%emt 0:01:05]} d6 {[%emt 0:00:08]} 2. d4 {[%emt 0:00:08]} Nf6 {[%emt 0:00:03]} 3. Nc3 {[%emt 0:00:17]} g6 {[%emt 0:00:03]} 4. Nf3 {[%emt 0:00:32]} Bg7 {[%emt 0:00:05]} 5. Be2 {[%emt 0:00:08]} O-O {[%emt 0:00:11]} 6. O-O {[%emt 0:00:09]} a6 {[%emt 0:00:02]} 7. a4 {[%emt 0:03:21]} Nc6 {[%emt 0:00:12]} 8. a5 {[%emt 0:00:25]} e5 {[%emt 0:09:09]} 9. Re1 {[%emt 0:07:29]} (9. d5 {was preferrable.} Na7 10. Re1) 9... Re8 {[%emt 0:08:38]} 10. d5 {[%emt 0:01:49]} Nd4 {[%emt 0:03:58]} 11. Be3 {[%emt 0:12:04]} (11. Nxd4 exd4 12. Qxd4 Nxe4 $15) 11... c5 {[%emt 0:13:30]} ({Black should play} 11... Nxe2+ $11 12. Qxe2 h6) 12. dxc6 {[%emt 0:01:54]} Nxe2+ {[%emt 0:15:38]} 13. Rxe2 {[%emt 0:02:02]} bxc6 {[%emt 0:00:19]} 14. Rd2 $1 {[%emt 0:00:26]} d5 {[%emt 0:03:47]} 15. exd5 {[%emt 0:02:21]} e4 {[%emt 0:01:06]} (15... cxd5 $14 16. Nxd5 Nxd5) 16. dxc6 $18 {[%emt 0:10:17]} Qc7 {[%emt 0:00:47]} 17. Bb6 {[%emt 0:02:53]} (17. Nd4 $18) 17... Qxc6 $16 {[%emt 0:05:04]} 18. Nd4 {[%emt 0:01:06]} Qb7 {[%emt 0:01:31]} 19. Nb3 {[%emt 0:10:23]} Bh6 {[%emt 0:13:57]} 20. Rd8 {[%emt 0:07:49]} Bf5 {[%emt 0:04:19]} 21. Rxe8+ {[%emt 0:11:00]} Rxe8 {[%emt 0:00:08]} 22. Qd6 {[%emt 0:00:43]} Ng4 $2 {[%emt 0:05:15]} (22... Nd7 $16) 23. h3 $18 {[%emt 0:03:00]} Ne5 {[%emt 0:00:01]} 24. Nd5 {[%emt 0:11:47]} Bg7 {[%emt 0:13:27]} 25. Nc5 {[%emt 0:02:35]} Qc6 {[%emt 0:00:15]} 26. Qxc6 {[%emt 0:04:46]} Nxc6 {[%emt 0:00:02]} 27. Nxa6 {[%emt 0:00:12]} Bxb2 {[%emt 0:01:07]} 28. Ra2 {[%emt 0:01:43]} Be5 {[%emt 0:00:01]} 29. Nac7 {[%emt 0:00:26]} Rb8 {[%emt 0:00:06]} 30. c4 {[%emt 0:00:55]} Be6 {[%emt 0:01:07]} 31. Nxe6 {[%emt 0:01:24]} fxe6 {[%emt 0:00:01]} 32. Ne3 {[%emt 0:00:38]} Kf7 {[%emt 0:01:23]} 33. c5 {[%emt 0:00:11]} Ke7 {[%emt 0:00:51]} 34. a6 {[%emt 0:00:36]} Kd7 {[%emt 0:00:12]} 35. Nc4 {[%emt 0:00:26]} Bd4 {[%emt 0:00:51]} 36. g4 {[%emt 0:00:52]} (36. Rd2 $142 {[%cal Oc4e5]} Ra8 37. Ne5+ Nxe5 38. Rxd4+ Ke7 39. Rxe4) 36... Ra8 $18 {[%emt 0:00:22]} 37. a7 {[%emt 0:00:14]} e5 {[%emt 0:00:38]} 38. Kg2 {[%emt 0:00:11]} (38. Re2 $18) 38... Ke6 $2 {[%emt 0:00:10][%mdl 8192]} (38... Nb4 $16 39. Ra3 Kc6 40. Na5+ Kb5) 39. Nd6 $18 {[%emt 0:00:42]} Nb4 {[%emt 0:00:53]} 40. Ra4 {[%emt 0:01:00]} Nd5 {[%emt 0:00:18]} 41. Nxe4 {[%emt 0:00:26]} Kd7 {[%emt 0:00:52]} 42. Ra6 {[%emt 0:00:32]} Nxb6 $2 {[%emt 0:00:24]} (42... Kc6 43. Bd8+ Kb5) 43. cxb6 $18 {[%emt 0:00:14]} Kc6 {[%emt 0:00:01]} 44. g5 $2 {[%emt 0:00:46]} (44. Nd6 $18 {is the precise move to win. White wants to mate with b7+.} Bxb6 45. Nc8 (45. Nc4 Rxa7 46. Rxb6+ Kc5 $16) 45... Rxc8 46. a8=Q+ (46. a8=R Rc7 $18) 46... Rxa8 47. Rxa8) 44... Bxb6 $16 {[%emt 0:00:34]} 45. Nf6 {[%emt 0:00:17]} ({White should try} 45. Nd6 $1 $16 {[%cal Rd6c8] Threatens to win with Nc8!} Kc5 (45... Rxa7 $2 46. Rxb6+ Kd5 47. Rb7 $18) 46. Nc8) 45... Rxa7 $14 {[%emt 0:00:24]} 46. Rxa7 {[%emt 0:00:11]} Bxa7 {[%emt 0:00:02]} 47. Nxh7 {[%emt 0:00:11]} Kd5 {[%emt 0:00:06]} 48. f3 {[%emt 0:00:44]} (48. Nf8 $14 Ke4 49. Nxg6) 48... Ke6 $11 {[%emt 0:00:34]} 49. Nf6 {[%emt 0:00:41]} Be3 {[%emt 0:00:48]} 50. h4 {[%emt 0:00:20]} Bd2 {[%emt 0:00:41]} 51. Ne4 {[%emt 0:00:33]} (51. Kh3 $5) 51... Be1 {[%emt 0:00:12]} 52. Ng3 {[%emt 0:01:03]} Kf7 $2 {[%emt 0:00:57][%mdl 8192]} (52... Ba5 $11) 53. Kh3 $18 {[%emt 0:00:14]} Ke6 {[%emt 0:00:17] [#]} (53... Bc3 $142 54. Kg4 Bb4) 54. Kg4 $1 $18 {[%emt 0:00:20]} Kf7 {[%emt 0:00:29]} 55. Ne4 {[%emt 0:00:17]} Bb4 {[%emt 0:00:59]} 56. h5 {[%emt 0:00:45]} gxh5+ {[%emt 0:00:40]} 57. Kxh5 {[%emt 0:00:13]} Kg7 {[%emt 0:00:39]} 58. Ng3 {[%emt 0:00:26]} Bd2 {[%emt 0:00:14]} 59. Nf5+ {[%emt 0:00:17]} Kf7 {[%emt 0:00:39]} 60. Kh6 {[%emt 0:00:33]} Bf4 {[%emt 0:00:20]} 61. Nd6+ {[%emt 0:00:56]} Ke6 {[%emt 0:00:37] [#]} 62. Ne4 $1 {[%emt 0:00:01]} Bc1 {[%emt 0:00:35]} 63. Kh7 {[%emt 0:01:11]} Ba3 {[%emt 0:00:02]} 64. g6 {[%emt 0:00:23]} Bf8 {[%emt 0:00:02]} 65. g7 {[%emt 0:00:30]} Bxg7 {[%emt 0:00:05]} 66. Kxg7 {[%emt 0:00:08]} Kf5 {[%emt 0:00:02]} 67. Nd2 {[%emt 0:00:26]} 1-0

[Event "1st Festival Galdar 2024"]
[Site "Galdar"]
[Date "2024.09.03"]
[Round "3.14"]
[White "Suarez Uriel, Adrian"]
[Black "Marrero Rodriguez, Jorge"]
[Result "1-0"]
[Annotator "TA"]
[ECO "C60"]
[WhiteElo "2383"]
[BlackElo "2169"]
[PlyCount "51"]
[EventDate "2024.09.02"]
[EventType "swiss"]
[EventCountry "ESP"]
[SourceTitle "playchess.com"]
[Source "ChessBase"]
[SourceQuality "1"]
[TimeControl "5400+30"]

{[%evp 9,50,34,79,0,12,0,19,37,59,60,60,0,9,21,1,22,16,-108,-110,-114,-110,-103,-108,-174,76,77,801,822,800,793,754,727,1141,1145,1141,1043,29990,29991,29991,29992,29992,29993,29999]} 1. e4 {[%emt 0:02:04]} e5 {[%emt 0:00:07]} 2. Nf3 {[%emt 0:00:03]} Nc6 {[%emt 0:00:18]} 3. Bb5 {[%emt 0:00:05]} Nge7 {[%emt 0:00:27]} 4. O-O {[%emt 0:00:06]} Ng6 {[%emt 0:00:11]} 5. c3 {[%emt 0:00:03][%cal Bc2c3,Bc3c4][%mdl 32]} d5 {[%emt 0:00:10]} 6. exd5 {[%emt 0:05:05]} (6. Qa4 $16) 6... Qxd5 $11 {[%emt 0:00:14]} 7. c4 {[%emt 0:00:03]} Qd6 {[%emt 0:02:32]} 8. d4 {[%emt 0:00:09][%cal Bd2d4,Bd4d5][%mdl 32] The position is equal.} Bg4 {[%emt 0:03:46] Threatens to win with ...0-0-0.} 9. d5 {[%emt 0:10:26]} O-O-O $1 {[%emt 0:00:36]} 10. Bxc6 {[%emt 0:01:04]} ({Better is} 10. Qa4 $14 Bxf3 11. dxc6) 10... bxc6 {[%emt 0:00:21][%cal Bb7c6,Bc6d5,Bd5d4][%mdl 32]} 11. h3 {[%emt 0:00:15]} Bxf3 {[%emt 0:01:11]} 12. Qxf3 {[%emt 0:04:37] Nc3 would now be deadly.} cxd5 {[%emt 0:00:07]} 13. Nc3 {[%emt 0:00:09]} (13. Qxf7 $11 {keeps the balance.} d4 14. Qf5+ Rd7 15. Qe4) 13... d4 $1 $17 {[%emt 0:02:49]} 14. Nb5 {[%emt 0:08:29] [#]} Qb6 {[%emt 0:00:27]} 15. Qxf7 {[%emt 0:02:21]} a6 {[%emt 0:01:38]} 16. a4 {[%emt 0:05:42] [#]} axb5 $2 {[%emt 0:02:28]} (16... Be7 $1 $19 17. Qf5+ Kb8) 17. axb5 $16 {[%emt 0:00:02] And now Ra8+ would win.} Bb4 $2 {[%emt 0:05:40][%mdl 8192] Loses the game.} (17... Qb7 $16) 18. Ra8+ $18 {[%emt 0:00:12]} Kb7 {[%emt 0:00:16][%cal Bc8b7,Bb7b6,Bb6a7][%mdl 32]} 19. Qf3+ {[%emt 0:00:02]} c6 {[%emt 0:00:22]} 20. Ra6 {[%emt 0:00:03]} Qc5 {[%emt 0:04:54]} 21. Rxc6 {[%emt 0:00:26]} e4 {[%emt 0:00:42]} 22. Qxe4 {[%emt 0:00:20]} Qe5 {[%emt 0:00:13] [#]} 23. Rb6+ $3 {[%emt 0:01:41][%mdl 512] White mates.} Kxb6 {[%emt 0:00:16]} 24. Qc6+ {[%emt 0:00:01]} Ka7 {[%emt 0:00:08] [#]} 25. Bf4 $1 {[%emt 0:00:02][%mdl 512]} Qe1 {[%emt 0:05:21]} (25... Ba3 26. Bxe5) 26. Qa6# {[%emt 0:00:37] Weighted Error Value: White=0.29 (precise) /Black=0.65.  Loses game:     	---       	Black=1      Missed win:     	---       	Black=1      Mistake:       	White=3     	---        OK:         	White=3     	Black=3      Best:        	White=3     	Black=2      Strong:       	---       	Black=2} 1-0

[Event "1st Festival Galdar 2024"]
[Site "Galdar"]
[Date "2024.09.03"]
[Round "3.15"]
[White "Arizmendi Martinez, Julen Luis"]
[Black "Sosa Suarez, Carla Cristina"]
[Result "1-0"]
[Annotator "TA"]
[ECO "D53"]
[WhiteElo "2517"]
[BlackElo "2016"]
[PlyCount "61"]
[EventDate "2024.09.02"]
[EventType "swiss"]
[EventCountry "ESP"]
[SourceTitle "playchess.com"]
[Source "ChessBase"]
[SourceQuality "1"]
[TimeControl "5400+30"]

{[%evp 12,61,14,0,10,8,42,42,45,33,41,39,37,34,29,10,10,6,28,0,6,-10,0,0,0,-31,0,-9,0,-33,0,0,112,0,0,0,0,0,65,68,352,349,447,436,620,625,614,577,1197,1185,1167,627]} 1. d4 {[%emt 0:01:25]} Nf6 {[%emt 0:00:12]} 2. c4 {[%emt 0:00:56]} e6 {[%emt 0:00:04]} 3. Nf3 {[%emt 0:05:40]} d5 {[%emt 0:00:19]} 4. Nc3 {[%emt 0:01:18]} Be7 {[%emt 0:01:11]} 5. Bg5 {[%emt 0:06:36]} h6 {[%emt 0:02:32]} 6. Bxf6 {[%emt 0:07:41]} Bxf6 {[%emt 0:01:04]} 7. Qd2 {[%emt 0:00:16]} c6 {[%emt 0:05:37]} 8. e4 {[%emt 0:01:54][%cal Be2e4,Be4e5][%mdl 32]} dxc4 {[%emt 0:04:28]} 9. e5 {[%emt 0:07:51]} Be7 {[%emt 0:00:28] White is slightly better.} 10. Bxc4 {[%emt 0:00:11]} b5 {[%emt 0:02:55][%cal Bb7b5,Bb5b4][%mdl 32]} 11. Bd3 {[%emt 0:01:47]} b4 {[%emt 0:06:36]} 12. Ne4 {[%emt 0:01:00]} Ba6 {[%emt 0:09:44]} 13. O-O {[%emt 0:07:25]} Bxd3 {[%emt 0:10:15]} 14. Qxd3 {[%emt 0:00:25]} Qd5 {[%emt 0:00:36]} 15. a3 {[%emt 0:22:15]} bxa3 {[%emt 0:05:30]} 16. bxa3 {[%emt 0:02:12]} Nd7 {[%emt 0:01:20]} 17. Rfc1 {[%emt 0:03:48][%cal Bf1c1,Bc1c4,Bc4c2][%mdl 32]} (17. Nc3 $5 Qa5 $8 18. Ne4 $11) 17... O-O {[%emt 0:03:56]} 18. Rc4 {[%emt 0:03:45]} (18. Nc3 $5 Qa5 $8 19. Rc2 $15) 18... Nb6 {[%emt 0:04:17]} 19. Rc2 {[%emt 0:01:24]} Rfd8 {[%emt 0:03:18][%cal Oc6c5]} 20. Rac1 {[%emt 0:05:45]} Rac8 {[%emt 0:02:12][%cal Oc6c5]} 21. Nc5 {[%emt 0:00:51]} Bg5 {[%emt 0:07:33]} (21... Nd7 $11 {keeps the balance.} 22. Nxd7 (22. Nb7 Rf8 $15) 22... Rxd7) 22. Rb1 {[%emt 0:04:57]} (22. Nxg5 $16 hxg5 23. Rd1) 22... Be7 $11 {[%emt 0:00:44] [#] And now ...Bxc5 would win.} 23. Qa6 {[%emt 0:01:36]} Rc7 {[%emt 0:01:52]} 24. Qe2 {[%emt 0:01:15]} g5 {[%emt 0:02:10]} (24... Nd7 $11) 25. h3 {[%emt 0:00:29] White is more active.} h5 $2 {[%emt 0:02:07][%mdl 8192] Loses the game.} ({Black should try} 25... Rdc8 $14) 26. Ne4 $18 {[%emt 0:01:02] Excellent horsemanship.} g4 {[%emt 0:02:13]} 27. hxg4 {[%emt 0:00:26] White is clearly winning.} hxg4 {[%emt 0:00:02]} (27... Rdc8 $142 28. gxh5 Qd8) 28. Nfg5 {[%emt 0:03:43]} Bxg5 {[%emt 0:05:04]} 29. Qxg4 {[%emt 0:00:08]} ({Not} 29. Nxg5 Qxd4 30. Ne4 Qxe5 $11) 29... Kf8 {[%emt 0:00:54]} 30. Qxg5 {[%emt 0:01:23] [#] Threatening mate with Rc3.} f5 {[%emt 0:03:18]} 31. Nf6 {[%emt 0:01:26] Weighted Error Value: White=0.12 (very precise) /Black=0.54.  Loses game:     	---       	Black=1      Mistake:       	White=1     	Black=3      Inaccurate:     	White=2     	Black=2      OK:         	White=9     	Black=11     Best:        	White=1     	---} 1-0

[Event "1st Festival Galdar 2024"]
[Site "Galdar"]
[Date "2024.09.03"]
[Round "3.16"]
[White "Rodriguez Melian, Jose Luis"]
[Black "Kurajica, Bojan"]
[Result "0-1"]
[Annotator "RC"]
[ECO "E16"]
[WhiteElo "2026"]
[BlackElo "2409"]
[PlyCount "54"]
[EventDate "2024.09.02"]
[EventType "swiss"]
[EventCountry "ESP"]
[SourceTitle "playchess.com"]
[Source "ChessBase"]
[SourceQuality "1"]
[TimeControl "5400+30"]

1. d4 {[%emt 0:00:01]} Nf6 {[%emt 0:00:08]} 2. c4 {[%emt 0:00:05]} b6 {[%emt 0:00:11]} 3. Nf3 {[%emt 0:00:08]} Bb7 {[%emt 0:00:10]} 4. g3 {[%emt 0:00:06]} e6 {[%emt 0:02:01]} 5. Bg2 {[%emt 0:00:06]} Bb4+ {[%emt 0:00:13]} 6. Bd2 {[%emt 0:00:11]} Be7 {[%emt 0:01:15]} 7. O-O {[%emt 0:00:12]} c5 {[%emt 0:03:12]} 8. dxc5 {[%emt 0:03:04]} bxc5 {[%emt 0:00:40]} 9. Bc3 {[%emt 0:10:55]} O-O {[%emt 0:00:39]} 10. Nbd2 {[%emt 0:00:55]} d5 {[%emt 0:08:26]} 11. e3 {[%emt 0:05:02]} Qb6 {[%emt 0:06:16]} 12. cxd5 {[%emt 0:06:35]} exd5 {[%emt 0:03:28]} 13. Rc1 {[%emt 0:07:17]} Nc6 {[%emt 0:08:48]} 14. Qc2 {[%emt 0:25:27]} Nb4 {[%emt 0:04:07]} 15. Bxb4 {[%emt 0:01:12]} Qxb4 {[%emt 0:01:26]} 16. Rfd1 {[%emt 0:03:48]} a5 {[%emt 0:07:30]} 17. Nb1 {[%emt 0:06:26]} Rac8 {[%emt 0:08:49]} 18. Nc3 {[%emt 0:01:59]} Rfd8 {[%emt 0:02:58]} 19. Ne5 {[%emt 0:10:13]} Qb6 {[%emt 0:05:05]} 20. Bh3 {[%emt 0:00:29]} Rc7 {[%emt 0:01:26]} 21. Na4 {[%emt 0:03:37]} Qa7 {[%emt 0:00:17]} 22. Nc3 {[%emt 0:00:17]} Qb6 {[%emt 0:06:15]} 23. Na4 {[%emt 0:00:09]} Qd6 {[%emt 0:02:59]} 24. Nc4 {[%emt 0:04:26]} Qa6 {[%emt 0:00:13]} 25. Nd2 {[%emt 0:00:16]} d4 {[%emt 0:03:41]} 26. e4 {[%emt 0:04:09]} c4 {[%emt 0:03:03]} 27. e5 {[%emt 0:03:59]} d3 {[%emt 0:00:38]} 0-1

[Event "1st Festival Galdar 2024"]
[Site "Galdar"]
[Date "2024.09.03"]
[Round "3.17"]
[White "Gil Alba, Hector Luis"]
[Black "Illana Elorduy, Jesus Eusebio"]
[Result "1-0"]
[Annotator "TA"]
[ECO "B03"]
[WhiteElo "2292"]
[BlackElo "1668"]
[PlyCount "77"]
[EventDate "2024.09.02"]
[EventType "swiss"]
[EventCountry "ESP"]
[SourceTitle "playchess.com"]
[Source "ChessBase"]
[SourceQuality "1"]
[TimeControl "5400+30"]

{[%evp 15,77,14,28,34,41,0,42,49,62,54,100,90,90,72,64,64,73,53,56,52,50,49,33,34,28,46,56,56,57,55,138,78,112,47,33,18,32,29,88,86,83,77,152,154,170,147,147,137,214,203,227,251,266,287,654,576,524,430,428,402,1388,1358,2203,2065]} 1. e4 {[%emt 0:00:37][%cal Be2e4,Be4e5][%mdl 32]} Nf6 {[%emt 0:00:11]} 2. e5 {[%emt 0:00:25]} Nd5 {[%emt 0:00:04]} 3. d4 {[%emt 0:00:12]} d6 {[%emt 0:00:26]} 4. c4 {[%emt 0:00:15]} Nb6 {[%emt 0:00:17]} 5. exd6 {[%emt 0:00:23]} exd6 {[%emt 0:00:37]} 6. Nc3 {[%emt 0:00:09]} Be7 {[%emt 0:00:37]} 7. Be3 {[%emt 0:00:11]} O-O {[%emt 0:01:55]} 8. Bd3 {[%emt 0:00:11]} Nc6 {[%emt 0:03:32]} 9. Nge2 {[%emt 0:05:09]} Bg4 {[%emt 0:01:59][%cal Bc8g4,Bg4h5,Bh5g6,Bg6h7][%mdl 32]} 10. f3 {[%emt 0:00:21]} Bh5 {[%emt 0:02:03]} 11. O-O {[%emt 0:00:39] White is slightly better.} Bf6 {[%emt 0:06:10]} 12. b3 {[%emt 0:02:17]} Qe7 {[%emt 0:01:54]} (12... Re8 $14 13. Be4 a5) 13. Bf2 {[%emt 0:02:33]} Rae8 {[%emt 0:07:00]} 14. Be4 {[%emt 0:05:00]} Bg6 {[%emt 0:02:52]} 15. Ng3 {[%emt 0:01:25]} Qd8 {[%emt 0:03:11]} 16. Bxc6 {[%emt 0:10:02]} bxc6 {[%emt 0:00:15]} 17. f4 {[%emt 0:00:10][%cal Bf3f4,Bf4f5][%mdl 32] [#] Dodges Bg5. Strongly threatening f5.} h6 $1 {[%emt 0:02:08]} 18. f5 {[%emt 0:00:46]} Bh7 {[%emt 0:00:15]} 19. Qf3 {[%emt 0:00:19]} d5 {[%emt 0:01:35]} 20. c5 {[%emt 0:01:04]} Nd7 {[%emt 0:05:28]} 21. b4 {[%emt 0:01:19]} a6 $1 {[%emt 0:01:17]} 22. a4 $36 {[%emt 0:02:21][%mdl 2048] White is more active.} Nb8 {[%emt 0:13:04]} (22... Bg5 $14) 23. Nh5 {[%emt 0:02:10]} (23. b5 $142) 23... Bh4 {[%emt 0:06:35]} 24. g3 {[%emt 0:01:17] White has more active pieces.} (24. Qg4 $16 {[%csl Gh5][%cal Rg4g7]} Bxf2+ 25. Rxf2) 24... Bg5 $14 {[%emt 0:01:16]} 25. Rad1 {[%emt 0:01:10] Prevents Bd2} g6 {[%emt 0:02:02][%cal Bg7g6,Bg6g5][%mdl 32]} 26. Nf4 {[%emt 0:00:20]} Bxf4 {[%emt 0:00:31]} (26... Qc8 $11) 27. Qxf4 $16 {[%emt 0:01:02]} g5 {[%emt 0:02:04]} 28. Qf3 {[%emt 0:00:27]} Qd7 {[%emt 0:02:14]} ({Better is} 28... Nd7) 29. g4 {[%emt 0:02:24][%cal Bg3g4,Bg4h5][%mdl 32]} f6 {[%emt 0:01:09]} 30. b5 {[%emt 0:02:15]} h5 {[%emt 0:06:08]} 31. bxc6 {[%emt 0:00:42]} (31. gxh5 axb5 32. axb5 Bxf5 $16) 31... Qxc6 {[%emt 0:01:49]} (31... Nxc6 $16 32. Qxd5+ Qxd5 33. Nxd5 Re4) 32. gxh5 $18 {[%emt 0:01:25]} Kg7 {[%emt 0:03:12]} 33. Bg3 {[%emt 0:00:26]} (33. Nxd5 $2 Bg8 34. h4 (34. h6+ $2 Kh8 $19) 34... Bxd5 $19) 33... Rf7 {[%emt 0:01:58]} 34. Rde1 {[%emt 0:01:17]} (34. Qxd5 Bg8 35. Rfe1 Rd7 36. Qxc6 Rxe1+ 37. Bxe1 Nxc6 $18) 34... Rfe7 $2 {[%emt 0:00:38] [#]} (34... Rxe1 35. Rxe1 Qd7 36. Qxd5 (36. Nxd5 Nc6 $18) 36... Nc6 37. Qxd7 Rxd7) 35. Rxe7+ {[%emt 0:00:50]} ({Weaker is} 35. Nxd5 Rxe1 36. Bxe1 Rd8 $14) 35... Rxe7 {[%emt 0:00:03]} 36. Nxd5 {[%emt 0:01:12][%cal Bc3d5,Bd5c7,Bc7e6][%mdl 32]} Rd7 {[%emt 0:01:05]} 37. Nxc7 {[%emt 0:00:20]} Qxa4 {[%emt 0:01:05]} (37... Rxc7 $142 38. Qxc6 Rxc6 39. Bxb8 Rc8) 38. Ne6+ {[%emt 0:00:15]} Kf7 {[%emt 0:02:27]} 39. Bxb8 {[%emt 0:00:14] Weighted Error Value: White=0.14 (very precise) /Black=0.34.  Mistake:       	White=2     	Black=7      Inaccurate:     	White=1     	Black=3      OK:         	White=14    	Black=7      Best:        	White=1     	Black=3      Strong:       	---       	Black=2} 1-0

[Event "1st Festival Galdar 2024"]
[Site "Galdar"]
[Date "2024.09.03"]
[Round "3.18"]
[White "Lagarejos Gonzalez, Eduardo"]
[Black "Mamani Beltran, Deniman"]
[Result "0-1"]
[Annotator "TA"]
[ECO "C01"]
[WhiteElo "1971"]
[BlackElo "2229"]
[PlyCount "90"]
[EventDate "2024.09.02"]
[EventType "swiss"]
[EventCountry "ESP"]
[SourceTitle "playchess.com"]
[Source "ChessBase"]
[SourceQuality "1"]
[TimeControl "5400+30"]

{[%evp 9,90,12,9,-20,-10,-9,-7,-41,-27,-22,-12,-27,-24,-14,-23,-54,-57,-58,-52,-46,-57,-69,-40,-54,-13,-8,-14,-9,-12,-34,-29,-41,-28,-37,-41,-72,-58,-58,-34,-43,0,-7,0,-20,-12,-42,-16,-45,-30,-20,-14,-43,-33,-45,-27,-35,-36,-77,-71,-157,-164,-141,-154,-185,-7,-15,-16,-13,0,-105,0,-12,-17,-541,-562,-505,-543,-507,-222,-215,-74,-29995,-29996]} 1. e4 {[%emt 0:00:10]} e6 {[%emt 0:00:07]} 2. d4 {[%emt 0:00:29]} d5 {[%emt 0:00:05]} 3. exd5 {[%emt 0:03:35]} exd5 {[%emt 0:00:06]} 4. h3 {[%emt 0:02:24]} Nf6 {[%emt 0:05:10]} 5. Nf3 {[%emt 0:01:06]} Bd6 {[%emt 0:00:42]} 6. Nc3 {[%emt 0:01:00]} O-O {[%emt 0:01:50]} 7. Be2 {[%emt 0:01:12]} c6 {[%emt 0:02:02]} 8. Bg5 {[%emt 0:13:55] The position is equal.} Nbd7 {[%emt 0:01:23]} 9. O-O {[%emt 0:02:20]} h6 {[%emt 0:01:09]} 10. Bh4 {[%emt 0:01:20]} Qc7 {[%emt 0:00:10]} 11. Bd3 {[%emt 0:01:27]} b5 {[%emt 0:01:58]} 12. Bxf6 {[%emt 0:08:34]} Nxf6 {[%emt 0:01:28]} 13. Re1 {[%emt 0:00:23]} a6 {[%emt 0:02:06]} 14. a4 {[%emt 0:00:54][%cal Ra4b5]} b4 {[%emt 0:00:42]} 15. Nb1 {[%emt 0:00:13]} Bb7 {[%emt 0:01:50]} 16. Nbd2 {[%emt 0:01:19]} Rae8 {[%emt 0:00:23]} (16... c5 {is interesting.} 17. dxc5 Qxc5 18. a5 Rae8) 17. Rxe8 {[%emt 0:00:20]} Rxe8 {[%emt 0:00:05]} 18. Qf1 {[%emt 0:00:03]} Ra8 {[%emt 0:00:59]} 19. Re1 {[%emt 0:02:59]} c5 {[%emt 0:00:06]} 20. dxc5 {[%emt 0:00:54]} Bxc5 {[%emt 0:00:09]} 21. Nb3 {[%emt 0:00:07]} Bb6 {[%emt 0:00:06]} 22. Nbd4 {[%emt 0:00:28]} Ne4 {[%emt 0:00:07]} 23. Re2 {[%emt 0:02:22]} Bc5 {[%emt 0:07:30]} 24. Qe1 {[%emt 0:04:34]} Qd7 {[%emt 0:06:52]} 25. Nb3 {[%emt 0:06:00][%cal Rd3e4] A dynamic duo of knights.} Bf8 {[%emt 0:01:45]} 26. a5 {[%emt 0:05:09]} Qd6 {[%emt 0:08:25]} 27. Nfd4 {[%emt 0:12:04]} Qf4 {[%emt 0:02:01]} 28. Re3 {[%emt 0:10:34]} Bd6 {[%emt 0:00:43]} 29. g3 {[%emt 0:04:12]} Qf6 {[%emt 0:00:26]} 30. Rf3 {[%emt 0:00:34]} Qd8 {[%emt 0:03:00]} 31. h4 {[%emt 0:05:09]} Qd7 {[%emt 0:00:40]} 32. Nf5 {[%emt 0:00:54]} Bf8 $1 {[%emt 0:00:53]} 33. Qe3 {[%emt 0:03:46]} Re8 {[%emt 0:07:02][%cal Oe4g5]} 34. Qd4 {[%emt 0:01:04]} (34. Qb6 $142 Re6 35. Qd4) 34... g6 $17 {[%emt 0:01:11]} 35. Ne3 {[%emt 0:00:46]} Bg7 {[%emt 0:00:04] Wards off Ng2} 36. Qxb4 {[%emt 0:02:13]} Bxb2 $2 {[%emt 0:05:27]} (36... d4 $19 {Threatens to win with ...Ng5.} 37. Ng2 Ng5 38. hxg5 Bxf3 39. gxh6 Qh3 (39... Bxh6 $2 40. Nxd4 Bb7 41. Bc4 $19)) 37. Bxe4 $11 {[%emt 0:01:49]} Rxe4 {[%emt 0:00:06]} (37... dxe4 $5 38. Rf4 $8 Qb5 39. Qxb5 axb5 $19) 38. Qb6 {[%emt 0:01:43] Nc5 would now be deadly.} Re6 {[%emt 0:03:50]} 39. Qb4 {[%emt 0:00:05] [#]} (39. Qa7 $1 $11 {was the only way to keep the balance.} Re7 40. Nc5) 39... Re4 {[%emt 0:02:24]} (39... Ba3 $1 $17 {[%cal Ra3b4]} 40. Qxa3 d4 41. Nxd4 (41. Nc5 $2 Qd6 $19) 41... Qxd4) 40. Qb6 {[%emt 0:00:05] Black must now prevent Nc5.} Ba3 $36 {[%emt 0:00:14][%mdl 2048] Hoping for ...d4. White is under pressure.} 41. Nc5 $2 {[%emt 0:02:10][%mdl 8192]} (41. Nd4 $11 h5 42. Ng2) 41... Bxc5 $19 {[%emt 0:00:04]} 42. Qxc5 {[%emt 0:00:01]} d4 {[%emt 0:00:10]} 43. Ng2 {[%emt 0:00:35]} Re8 {[%emt 0:01:24]} (43... Re7 $142 44. Rb3 Qh3 45. Rxb7 Rxb7) 44. Rb3 {[%emt 0:00:15]} Be4 {[%emt 0:00:29]} (44... Rc8 $19 {and Black stays clearly on top.} 45. Qa7 Rc7 46. Qb8+ Kh7) 45. Rb4 $2 {[%emt 0:00:54][%mdl 8192] [#]} (45. Kh2 $17) 45... Qh3 {[%emt 0:35:37] Weighted Error Value: White=0.41/Black=0.30.  Loses game:     	White=2     	---        Missed win:     	---       	Black=1      Mistake:       	White=2     	Black=3      Inaccurate:     	White=7     	Black=4      OK:         	White=17    	Black=11     Best:        	White=2     	Black=4      Strong:       	---       	Black=1} 0-1